[Event "Early-Titled-Tuesday-Blitz-February-20-2024"]
[Site "Chess.com"]
[Date "2024.02.20"]
[Round "10"]
[White "NewBornNow"]
[Black "vladgoncharov"]
[Result "1-0"]
[WhiteElo "2801"]
[BlackElo "2649"]
[TimeControl "180+1"]
[EndTime "9:57:24 PST"]
[Termination "NewBornNow won by resignation"]

1. e4 {[%clk 0:03:00.9]} 1... e6 {[%clk 0:02:58.4]} 2. d4 {[%clk 0:02:59.9]}
2... d5 {[%clk 0:02:58.9]} 3. Nc3 {[%clk 0:03:00]} 3... Nf6 {[%clk 0:02:56.3]}
4. e5 {[%clk 0:02:59.2]} 4... Nfd7 {[%clk 0:02:56.1]} 5. Nce2 {[%clk 0:02:59.2]}
5... c5 {[%clk 0:02:54.1]} 6. c3 {[%clk 0:02:59.7]} 6... b5 {[%clk 0:02:54.1]}
7. a3 {[%clk 0:02:58.3]} 7... a5 {[%clk 0:02:48.7]} 8. f4 {[%clk 0:02:57.9]}
8... Ba6 {[%clk 0:02:41.1]} 9. Nf3 {[%clk 0:02:56.7]} 9... b4 {[%clk 0:02:38.6]}
10. f5 {[%clk 0:02:55.9]} 10... Bxe2 {[%clk 0:02:07.4]} 11. Bxe2 {[%clk
0:02:47.5]} 11... exf5 {[%clk 0:02:07]} 12. axb4 {[%clk 0:02:45.8]} 12... cxb4
{[%clk 0:02:06.1]} 13. O-O {[%clk 0:02:27.9]} 13... Be7 {[%clk 0:02:04.6]} 14.
Qb3 {[%clk 0:01:59.4]} 14... Nb6 {[%clk 0:01:58.4]} 15. Bb5+ {[%clk 0:01:58.3]}
15... Kf8 {[%clk 0:01:52.8]} 16. Qc2 {[%clk 0:01:54.7]} 16... g6 {[%clk
0:01:50.5]} 17. Bh6+ {[%clk 0:01:52.2]} 17... Kg8 {[%clk 0:01:50.5]} 18. cxb4
{[%clk 0:01:38.3]} 18... Bxb4 {[%clk 0:01:49.2]} 19. g4 {[%clk 0:01:30.9]} 19...
fxg4 {[%clk 0:01:16.6]} 20. Ng5 {[%clk 0:01:30.4]} 20... Ra7 {[%clk 0:01:16.7]}
21. Rf6 {[%clk 0:00:58.8]} 21... Be7 {[%clk 0:00:34.9]} 22. Nxf7 {[%clk
0:00:42.3]} 22... Qc7 {[%clk 0:00:34.8]} 23. Qxc7 {[%clk 0:00:38.3]} 23... Rxc7
{[%clk 0:00:34.1]} 24. Rxb6 {[%clk 0:00:36]} 24... Kxf7 {[%clk 0:00:16.9]} 25.
Rf1+ {[%clk 0:00:33.1]} 1-0

[Event "Early-Titled-Tuesday-Blitz-February-20-2024"]
[Site "Chess.com"]
[Date "2024.02.20"]
[Round "10"]
[White "DKmirl"]
[Black "Perecke"]
[Result "1-0"]
[WhiteElo "2336"]
[BlackElo "2480"]
[TimeControl "180+1"]
[EndTime "9:57:31 PST"]
[Termination "DKmirl won by resignation"]

1. d4 {[%clk 0:03:00.9]} 1... Nf6 {[%clk 0:02:58.1]} 2. Nf3 {[%clk 0:03:00.7]}
2... e6 {[%clk 0:02:57.7]} 3. g3 {[%clk 0:03:01.5]} 3... b6 {[%clk 0:02:57.5]}
4. Bg2 {[%clk 0:03:02]} 4... Bb7 {[%clk 0:02:58.2]} 5. O-O {[%clk 0:03:02.1]}
5... d5 {[%clk 0:02:56.9]} 6. Ne5 {[%clk 0:02:58.8]} 6... Bd6 {[%clk 0:02:50.9]}
7. c4 {[%clk 0:02:58.3]} 7... O-O {[%clk 0:02:50.8]} 8. Nc3 {[%clk 0:02:55.9]}
8... Nbd7 {[%clk 0:02:35.6]} 9. Bf4 {[%clk 0:02:53.4]} 9... c5 {[%clk
0:02:28.2]} 10. Nb5 {[%clk 0:02:47.2]} 10... Bb8 {[%clk 0:02:08.7]} 11. Qd2
{[%clk 0:02:20.9]} 11... a6 {[%clk 0:01:24.4]} 12. Nc3 {[%clk 0:02:04.6]} 12...
Nxe5 {[%clk 0:00:57.6]} 13. dxe5 {[%clk 0:01:49.4]} 13... Ne4 {[%clk 0:00:29.8]}
14. Nxe4 {[%clk 0:01:39.5]} 14... dxe4 {[%clk 0:00:30.7]} 15. Qc2 {[%clk
0:01:39.5]} 15... g5 {[%clk 0:00:20.1]} 16. Bxe4 {[%clk 0:01:26.3]} 16... Bxe4
{[%clk 0:00:16.3]} 17. Qxe4 {[%clk 0:01:26.1]} 17... Qd4 {[%clk 0:00:16.1]} 18.
Qxa8 {[%clk 0:01:16.3]} 18... gxf4 {[%clk 0:00:15.7]} 19. Qxa6 {[%clk
0:01:12.1]} 19... fxg3 {[%clk 0:00:14.1]} 20. hxg3 {[%clk 0:01:11]} 20... Bxe5
{[%clk 0:00:14.5]} 21. e3 {[%clk 0:01:07]} 21... Qg4 {[%clk 0:00:14]} 22. Qb7
{[%clk 0:01:04.7]} 22... Kh8 {[%clk 0:00:13.7]} 23. Kg2 {[%clk 0:00:58.8]} 23...
Rg8 {[%clk 0:00:13.4]} 24. Qf3 {[%clk 0:00:56.5]} 24... Qg6 {[%clk 0:00:08.8]}
25. Rh1 {[%clk 0:00:55.3]} 25... f5 {[%clk 0:00:07.6]} 26. Rh3 {[%clk 0:00:54]}
26... Rg7 {[%clk 0:00:05.4]} 27. Rd1 {[%clk 0:00:52.5]} 27... Kg8 {[%clk
0:00:05.1]} 28. Rd8+ {[%clk 0:00:51.1]} 28... Kf7 {[%clk 0:00:05.5]} 29. Qb7+
{[%clk 0:00:49.7]} 29... Kf6 {[%clk 0:00:03.4]} 30. Rf8+ {[%clk 0:00:49.2]}
30... Rf7 {[%clk 0:00:04]} 31. Rxf7+ {[%clk 0:00:49.1]} 31... Qxf7 {[%clk
0:00:04.5]} 32. Rh6+ {[%clk 0:00:48.3]} 32... Kg7 {[%clk 0:00:03.6]} 1-0

[Event "Early-Titled-Tuesday-Blitz-February-20-2024"]
[Site "Chess.com"]
[Date "2024.02.20"]
[Round "10"]
[White "malakismayil"]
[Black "wild3000"]
[Result "1-0"]
[WhiteElo "2530"]
[BlackElo "2420"]
[TimeControl "180+1"]
[EndTime "9:57:33 PST"]
[Termination "malakismayil won by resignation"]

1. e4 {[%clk 0:03:00.9]} 1... a6 {[%clk 0:02:40.4]} 2. d4 {[%clk 0:02:58.4]}
2... e6 {[%clk 0:02:40.1]} 3. Nc3 {[%clk 0:02:58]} 3... b5 {[%clk 0:02:40.1]} 4.
a3 {[%clk 0:02:57.9]} 4... Bb7 {[%clk 0:02:40.1]} 5. Be3 {[%clk 0:02:57.9]} 5...
Nf6 {[%clk 0:02:37.7]} 6. f3 {[%clk 0:02:58.3]} 6... d6 {[%clk 0:02:34.6]} 7.
Qd2 {[%clk 0:02:58.9]} 7... Be7 {[%clk 0:02:34.6]} 8. Bd3 {[%clk 0:02:58.9]}
8... Nbd7 {[%clk 0:02:34.1]} 9. Nge2 {[%clk 0:02:59.4]} 9... c5 {[%clk
0:02:34.3]} 10. Ng3 {[%clk 0:02:57.8]} 10... cxd4 {[%clk 0:02:30.3]} 11. Bxd4
{[%clk 0:02:58.7]} 11... Qc7 {[%clk 0:02:24.4]} 12. O-O {[%clk 0:02:56.3]} 12...
h5 {[%clk 0:02:16.4]} 13. f4 {[%clk 0:02:50.2]} 13... h4 {[%clk 0:02:16.2]} 14.
Nge2 {[%clk 0:02:50.8]} 14... h3 {[%clk 0:02:13.1]} 15. g3 {[%clk 0:02:50.6]}
15... e5 {[%clk 0:01:43.2]} 16. Be3 {[%clk 0:02:48.6]} 16... Ng4 {[%clk
0:01:43]} 17. Nd5 {[%clk 0:02:26.7]} 17... Bxd5 {[%clk 0:01:42.4]} 18. exd5
{[%clk 0:02:25.8]} 18... Nxe3 {[%clk 0:01:35.6]} 19. Qxe3 {[%clk 0:02:26.7]}
19... Qc5 {[%clk 0:01:32.1]} 20. Qxc5 {[%clk 0:02:23]} 20... Nxc5 {[%clk
0:01:32.3]} 21. Nc3 {[%clk 0:01:55.7]} 21... Nxd3 {[%clk 0:01:20.5]} 22. cxd3
{[%clk 0:01:56.6]} 22... exf4 {[%clk 0:01:16.2]} 23. Rxf4 {[%clk 0:01:54.5]}
23... Bf6 {[%clk 0:01:15.1]} 24. Re1+ {[%clk 0:01:45.1]} 24... Kd7 {[%clk
0:01:14.7]} 25. Ne4 {[%clk 0:01:44.6]} 25... Bd4+ {[%clk 0:01:07.3]} 26. Nf2
{[%clk 0:01:37.5]} 26... Bf6 {[%clk 0:00:55.7]} 27. Ng4 {[%clk 0:01:35.1]} 27...
Rae8 {[%clk 0:00:50.3]} 28. Rxe8 {[%clk 0:01:27.5]} 28... Rxe8 {[%clk
0:00:51.2]} 29. Rxf6 {[%clk 0:01:15.6]} 29... gxf6 {[%clk 0:00:39.3]} 30. Nxf6+
{[%clk 0:01:16.5]} 30... Ke7 {[%clk 0:00:40.1]} 31. Nxe8 {[%clk 0:01:16.6]}
31... Kxe8 {[%clk 0:00:41]} 32. g4 {[%clk 0:01:05.3]} 32... Ke7 {[%clk
0:00:40.5]} 33. Kf2 {[%clk 0:01:00.6]} 33... Kf6 {[%clk 0:00:39.3]} 34. Kg3
{[%clk 0:01:01.2]} 34... Kg5 {[%clk 0:00:39.6]} 35. Kxh3 {[%clk 0:00:58.8]}
35... Kf4 {[%clk 0:00:20.8]} 36. Kh4 {[%clk 0:00:59]} 36... Ke3 {[%clk
0:00:17.5]} 37. Kg5 {[%clk 0:00:57.9]} 37... Kxd3 {[%clk 0:00:18.4]} 38. h4
{[%clk 0:00:56.5]} 38... Kd4 {[%clk 0:00:16.5]} 39. h5 {[%clk 0:00:56.3]} 39...
Kxd5 {[%clk 0:00:17.4]} 40. h6 {[%clk 0:00:56.9]} 1-0

[Event "Early-Titled-Tuesday-Blitz-February-20-2024"]
[Site "Chess.com"]
[Date "2024.02.20"]
[Round "10"]
[White "DenLaz"]
[Black "Nikolakis2014"]
[Result "1-0"]
[WhiteElo "3023"]
[BlackElo "2745"]
[TimeControl "180+1"]
[EndTime "9:57:38 PST"]
[Termination "DenLaz won by resignation"]

1. d4 {[%clk 0:03:00.9]} 1... Nf6 {[%clk 0:03:00]} 2. c4 {[%clk 0:03:01.6]} 2...
e6 {[%clk 0:02:58.7]} 3. Nf3 {[%clk 0:03:02.2]} 3... d5 {[%clk 0:02:57.8]} 4. g3
{[%clk 0:03:02.9]} 4... Be7 {[%clk 0:02:57.6]} 5. Bg2 {[%clk 0:03:03.6]} 5...
O-O {[%clk 0:02:58.3]} 6. O-O {[%clk 0:03:04.3]} 6... c6 {[%clk 0:02:58.9]} 7.
Qc2 {[%clk 0:03:04.9]} 7... b6 {[%clk 0:02:58.2]} 8. Rd1 {[%clk 0:03:05.1]} 8...
Ba6 {[%clk 0:02:57.7]} 9. b3 {[%clk 0:03:05.3]} 9... Nbd7 {[%clk 0:02:57.8]} 10.
Nbd2 {[%clk 0:03:06]} 10... Rc8 {[%clk 0:02:57.6]} 11. e4 {[%clk 0:03:06.2]}
11... c5 {[%clk 0:02:47.7]} 12. exd5 {[%clk 0:03:06.1]} 12... exd5 {[%clk
0:02:46.9]} 13. Bb2 {[%clk 0:03:06.8]} 13... Re8 {[%clk 0:02:38.9]} 14. Qf5
{[%clk 0:03:05.4]} 14... g6 {[%clk 0:02:38.1]} 15. Qf4 {[%clk 0:03:05.6]} 15...
cxd4 {[%clk 0:02:26.5]} 16. Nxd4 {[%clk 0:03:04.1]} 16... Nc5 {[%clk 0:02:26.3]}
17. N2f3 {[%clk 0:03:03.8]} 17... Nfe4 {[%clk 0:02:19.1]} 18. cxd5 {[%clk
0:02:55]} 18... Bd6 {[%clk 0:02:14.7]} 19. Qh6 {[%clk 0:02:44.6]} 19... Bf8
{[%clk 0:02:14.3]} 20. Qf4 {[%clk 0:02:30.9]} 20... Nd3 {[%clk 0:02:10.4]} 21.
Rxd3 {[%clk 0:02:29.5]} 21... Bxd3 {[%clk 0:02:10]} 22. Rd1 {[%clk 0:01:21.9]}
22... Bc2 {[%clk 0:01:44.5]} 23. Rc1 {[%clk 0:01:04.3]} 23... Bd3 {[%clk
0:01:35.1]} 24. Rxc8 {[%clk 0:00:38.7]} 24... Qxc8 {[%clk 0:01:35]} 25. Nc6
{[%clk 0:00:39.4]} 25... Qf5 {[%clk 0:01:20.3]} 26. Qxf5 {[%clk 0:00:24]} 26...
gxf5 {[%clk 0:01:20.2]} 27. Nfe5 {[%clk 0:00:24.9]} 27... Nc5 {[%clk 0:01:17.1]}
28. b4 {[%clk 0:00:20.8]} 28... f6 {[%clk 0:01:06.9]} 29. bxc5 {[%clk
0:00:19.8]} 29... fxe5 {[%clk 0:01:06.1]} 30. d6 {[%clk 0:00:20.5]} 30... Bb5
{[%clk 0:00:49.8]} 31. d7 {[%clk 0:00:11.2]} 31... Bxc6 {[%clk 0:00:49.1]} 32.
Bxc6 {[%clk 0:00:11.8]} 32... Rd8 {[%clk 0:00:47.8]} 33. Bd5+ {[%clk 0:00:12.2]}
33... Kg7 {[%clk 0:00:45.8]} 34. Bxe5+ {[%clk 0:00:12.7]} 34... Kg6 {[%clk
0:00:46]} 35. c6 {[%clk 0:00:13.3]} 1-0

[Event "Early-Titled-Tuesday-Blitz-February-20-2024"]
[Site "Chess.com"]
[Date "2024.02.20"]
[Round "10"]
[White "Hikaru"]
[Black "Zhigalko_Sergei"]
[Result "1-0"]
[WhiteElo "3259"]
[BlackElo "2935"]
[TimeControl "180+1"]
[EndTime "9:57:41 PST"]
[Termination "Hikaru won by checkmate"]

1. h3 {[%clk 0:03:00.9]} 1... d5 {[%clk 0:02:54.4]} 2. Nf3 {[%clk 0:02:57]} 2...
c5 {[%clk 0:02:49.7]} 3. c4 {[%clk 0:02:54]} 3... d4 {[%clk 0:02:43.3]} 4. e3
{[%clk 0:02:53.9]} 4... Nc6 {[%clk 0:02:40.7]} 5. exd4 {[%clk 0:02:54.2]} 5...
cxd4 {[%clk 0:02:41.4]} 6. Bd3 {[%clk 0:02:52.8]} 6... e5 {[%clk 0:02:37.5]} 7.
O-O {[%clk 0:02:49.6]} 7... Bd6 {[%clk 0:02:34.8]} 8. Re1 {[%clk 0:02:43.2]}
8... Nge7 {[%clk 0:02:30.9]} 9. Be4 {[%clk 0:02:32]} 9... O-O {[%clk 0:02:26.6]}
10. d3 {[%clk 0:02:31.7]} 10... f5 {[%clk 0:02:22.5]} 11. Bxc6 {[%clk
0:02:23.5]} 11... Nxc6 {[%clk 0:02:23.4]} 12. a3 {[%clk 0:02:21.8]} 12... a5
{[%clk 0:02:23]} 13. Nbd2 {[%clk 0:02:14.1]} 13... Qf6 {[%clk 0:02:16.1]} 14.
Rb1 {[%clk 0:02:12.4]} 14... Kh8 {[%clk 0:02:11.9]} 15. Qe2 {[%clk 0:01:55.3]}
15... Bd7 {[%clk 0:02:07.3]} 16. b3 {[%clk 0:01:14.4]} 16... Rae8 {[%clk
0:02:05.8]} 17. Bb2 {[%clk 0:01:14.8]} 17... Qg6 {[%clk 0:02:00.2]} 18. Nh4
{[%clk 0:01:14.7]} 18... Qh6 {[%clk 0:01:59.7]} 19. Nhf3 {[%clk 0:01:15.2]}
19... Re6 {[%clk 0:01:40.3]} 20. Nf1 {[%clk 0:01:10.4]} 20... Rg6 {[%clk
0:01:36.9]} 21. Kh1 {[%clk 0:01:04.7]} 21... Rff6 {[%clk 0:01:18.5]} 22. Bc1
{[%clk 0:01:03.9]} 22... f4 {[%clk 0:01:18.1]} 23. N1h2 {[%clk 0:01:04.2]} 23...
Rf5 {[%clk 0:00:55.8]} 24. Rg1 {[%clk 0:00:56]} 24... Rh5 {[%clk 0:00:56.1]} 25.
b4 {[%clk 0:00:47.9]} 25... axb4 {[%clk 0:00:55.3]} 26. axb4 {[%clk 0:00:48.3]}
26... Ne7 {[%clk 0:00:30.8]} 27. Ra1 {[%clk 0:00:43.3]} 27... Kg8 {[%clk
0:00:26.6]} 28. Ra8+ {[%clk 0:00:42.3]} 28... Kf7 {[%clk 0:00:26.9]} 29. b5
{[%clk 0:00:40.9]} 29... Nf5 {[%clk 0:00:15.8]} 30. Ba3 {[%clk 0:00:40.8]} 30...
Bc7 {[%clk 0:00:07]} 31. Rf8+ {[%clk 0:00:38]} 31... Ke6 {[%clk 0:00:06.3]} 32.
Qe4 {[%clk 0:00:38.1]} 32... Ne7 {[%clk 0:00:03]} 33. Nxd4# {[%clk 0:00:36.7]}
1-0

[Event "Early-Titled-Tuesday-Blitz-February-20-2024"]
[Site "Chess.com"]
[Date "2024.02.20"]
[Round "10"]
[White "SahibSinghKnight"]
[Black "koncheto"]
[Result "1-0"]
[WhiteElo "2574"]
[BlackElo "2424"]
[TimeControl "180+1"]
[EndTime "9:57:43 PST"]
[Termination "SahibSinghKnight won by resignation"]

1. e4 {[%clk 0:02:58]} 1... c5 {[%clk 0:02:59.1]} 2. Nf3 {[%clk 0:02:56.8]} 2...
d6 {[%clk 0:02:59.5]} 3. d4 {[%clk 0:02:56.9]} 3... cxd4 {[%clk 0:03:00.4]} 4.
Nxd4 {[%clk 0:02:57.8]} 4... Nf6 {[%clk 0:03:00.4]} 5. Nc3 {[%clk 0:02:58.5]}
5... Nc6 {[%clk 0:02:59.9]} 6. Bg5 {[%clk 0:02:58]} 6... e6 {[%clk 0:03:00.2]}
7. Qd2 {[%clk 0:02:55.3]} 7... a6 {[%clk 0:03:00.3]} 8. O-O-O {[%clk 0:02:54.6]}
8... Bd7 {[%clk 0:02:57.6]} 9. f4 {[%clk 0:02:51.7]} 9... h6 {[%clk 0:02:39.2]}
10. Bxf6 {[%clk 0:02:32.3]} 10... Qxf6 {[%clk 0:02:38.1]} 11. e5 {[%clk
0:02:32.7]} 11... dxe5 {[%clk 0:02:31.3]} 12. Ndb5 {[%clk 0:02:32.1]} 12... Qd8
{[%clk 0:02:18.1]} 13. Nd6+ {[%clk 0:02:30.7]} 13... Bxd6 {[%clk 0:02:14.4]} 14.
Qxd6 {[%clk 0:02:31.6]} 14... exf4 {[%clk 0:01:59.4]} 15. Ne4 {[%clk 0:02:23.2]}
15... Qe7 {[%clk 0:01:27.9]} 16. Qc7 {[%clk 0:01:59.1]} 16... b5 {[%clk
0:01:04.9]} 17. Nd6+ {[%clk 0:01:57.3]} 17... Kf8 {[%clk 0:01:04.3]} 18. Nxf7
{[%clk 0:01:54.8]} 18... Be8 {[%clk 0:00:42.5]} 19. Qxe7+ {[%clk 0:01:53.6]}
19... Kxe7 {[%clk 0:00:42.1]} 20. Nxh8 {[%clk 0:01:54.5]} 20... Bh5 {[%clk
0:00:43]} 21. Re1 {[%clk 0:01:38.5]} 21... Rxh8 {[%clk 0:00:38.3]} 22. Be2
{[%clk 0:01:38.6]} 22... Bf7 {[%clk 0:00:26.7]} 23. c3 {[%clk 0:01:31.8]} 23...
Kf6 {[%clk 0:00:23.8]} 24. Rhf1 {[%clk 0:01:31.1]} 24... g5 {[%clk 0:00:23.9]}
25. g3 {[%clk 0:01:22.2]} 25... e5 {[%clk 0:00:24.2]} 26. Bf3 {[%clk 0:01:21.1]}
26... Ne7 {[%clk 0:00:17.1]} 27. gxf4 {[%clk 0:01:21]} 27... exf4 {[%clk
0:00:16.7]} 28. b3 {[%clk 0:01:19.3]} 28... Nf5 {[%clk 0:00:16.2]} 29. Bg4
{[%clk 0:01:16.2]} 29... Bg6 {[%clk 0:00:11.9]} 30. Kb2 {[%clk 0:01:12.1]} 30...
h5 {[%clk 0:00:12.3]} 31. Bxf5 {[%clk 0:01:09.7]} 31... Bxf5 {[%clk 0:00:12.6]}
32. h4 {[%clk 0:01:10.3]} 32... Rd8 {[%clk 0:00:08.6]} 33. hxg5+ {[%clk
0:01:10.4]} 33... Kxg5 {[%clk 0:00:09.5]} 34. Rf2 {[%clk 0:01:09.3]} 34... Bg4
{[%clk 0:00:08.4]} 35. Re5+ {[%clk 0:01:08.7]} 35... Kh4 {[%clk 0:00:07.7]} 36.
Rxf4 {[%clk 0:01:07.4]} 36... Kg3 {[%clk 0:00:07.6]} 37. Rf6 {[%clk 0:00:56.4]}
37... Rd3 {[%clk 0:00:05.1]} 38. Rg6 {[%clk 0:00:53.7]} 38... Rf3 {[%clk
0:00:03.7]} 39. Rxh5 {[%clk 0:00:52.4]} 1-0

[Event "Early-Titled-Tuesday-Blitz-February-20-2024"]
[Site "Chess.com"]
[Date "2024.02.20"]
[Round "10"]
[White "campochess"]
[Black "Kapitan_Bayan"]
[Result "1-0"]
[WhiteElo "2154"]
[BlackElo "2314"]
[TimeControl "180+1"]
[EndTime "9:57:43 PST"]
[Termination "campochess won by resignation"]

1. Nc3 {[%clk 0:02:59.3]} 1... d5 {[%clk 0:02:55.9]} 2. d4 {[%clk 0:02:59.1]}
2... Nf6 {[%clk 0:02:55.3]} 3. Bf4 {[%clk 0:02:58.7]} 3... a6 {[%clk 0:02:48.6]}
4. e3 {[%clk 0:02:58.2]} 4... g6 {[%clk 0:02:47.7]} 5. Nf3 {[%clk 0:02:56.3]}
5... Bg7 {[%clk 0:02:46.4]} 6. Be2 {[%clk 0:02:56]} 6... c5 {[%clk 0:02:45.5]}
7. dxc5 {[%clk 0:02:54.6]} 7... O-O {[%clk 0:02:24.7]} 8. O-O {[%clk 0:02:53]}
8... Nbd7 {[%clk 0:02:18.9]} 9. Nxd5 {[%clk 0:02:44.9]} 9... Nxc5 {[%clk
0:02:09.6]} 10. Nc7 {[%clk 0:02:33.9]} 10... Ra7 {[%clk 0:02:02.4]} 11. c4
{[%clk 0:02:21.7]} 11... Nh5 {[%clk 0:01:48.1]} 12. Be5 {[%clk 0:01:57.6]} 12...
Bxe5 {[%clk 0:01:44.8]} 13. Qxd8 {[%clk 0:01:55.5]} 13... Bxh2+ {[%clk
0:01:39.4]} 14. Kxh2 {[%clk 0:01:54.8]} 14... Rxd8 {[%clk 0:01:39.4]} 15. Rfd1
{[%clk 0:01:50]} 15... Bd7 {[%clk 0:01:33.6]} 16. Nd5 {[%clk 0:01:48.9]} 16...
e6 {[%clk 0:01:27.4]} 17. Nb6 {[%clk 0:01:44.6]} 17... Nf6 {[%clk 0:01:21.2]}
18. Ne5 {[%clk 0:01:42.7]} 18... a5 {[%clk 0:01:16.2]} 19. Rd4 {[%clk
0:01:29.3]} 19... Ra6 {[%clk 0:01:14.8]} 20. Nbxd7 {[%clk 0:01:22.2]} 20...
Nfxd7 {[%clk 0:00:51.2]} 21. Rad1 {[%clk 0:01:17.5]} 21... Nxe5 {[%clk
0:00:50.9]} 22. Rxd8+ {[%clk 0:01:16.3]} 22... Kg7 {[%clk 0:00:51.4]} 23. f4
{[%clk 0:01:08.6]} 23... Nc6 {[%clk 0:00:49.9]} 24. R8d2 {[%clk 0:00:57.3]}
24... Rb6 {[%clk 0:00:48.3]} 25. b3 {[%clk 0:00:55.6]} 25... Ne4 {[%clk
0:00:40.9]} 26. Rd7 {[%clk 0:00:54]} 26... Nc3 {[%clk 0:00:35.3]} 27. R1d2
{[%clk 0:00:53.4]} 27... Ne4 {[%clk 0:00:16.8]} 28. Rb2 {[%clk 0:00:50.2]} 28...
Nb8 {[%clk 0:00:13.2]} 29. Rd4 {[%clk 0:00:47.4]} 29... f5 {[%clk 0:00:13.2]}
30. Bf3 {[%clk 0:00:46.3]} 30... Nc6 {[%clk 0:00:11.2]} 31. Rd7+ {[%clk
0:00:45.4]} 31... Kh6 {[%clk 0:00:09.7]} 32. g4 {[%clk 0:00:39.8]} 32... fxg4
{[%clk 0:00:03.9]} 33. Bxe4 {[%clk 0:00:38.9]} 1-0

[Event "Early-Titled-Tuesday-Blitz-February-20-2024"]
[Site "Chess.com"]
[Date "2024.02.20"]
[Round "10"]
[White "Mops_2004"]
[Black "MatthewG-p4p"]
[Result "1-0"]
[WhiteElo "2756"]
[BlackElo "2884"]
[TimeControl "180+1"]
[EndTime "9:57:45 PST"]
[Termination "Mops_2004 won on time"]

1. g3 {[%clk 0:03:00.9]} 1... c5 {[%clk 0:02:58.6]} 2. Bg2 {[%clk 0:03:00.8]}
2... g6 {[%clk 0:02:59.3]} 3. c4 {[%clk 0:03:00.2]} 3... Bg7 {[%clk 0:02:59.9]}
4. Nc3 {[%clk 0:03:00.7]} 4... Nc6 {[%clk 0:03:00.7]} 5. d3 {[%clk 0:02:59.4]}
5... e6 {[%clk 0:03:00.4]} 6. h4 {[%clk 0:02:56.4]} 6... h6 {[%clk 0:02:59.5]}
7. Nf3 {[%clk 0:02:50.6]} 7... Nge7 {[%clk 0:02:58.2]} 8. O-O {[%clk 0:02:50.4]}
8... O-O {[%clk 0:02:58.1]} 9. a3 {[%clk 0:02:48.6]} 9... d5 {[%clk 0:02:58.2]}
10. Bd2 {[%clk 0:02:48.9]} 10... Kh7 {[%clk 0:02:55.5]} 11. Rb1 {[%clk
0:02:48.8]} 11... a5 {[%clk 0:02:43.1]} 12. Nb5 {[%clk 0:02:47.2]} 12... Nf5
{[%clk 0:02:28.1]} 13. e3 {[%clk 0:02:39.2]} 13... dxc4 {[%clk 0:02:18.2]} 14.
dxc4 {[%clk 0:02:39.5]} 14... Qd3 {[%clk 0:02:18.9]} 15. Qa4 {[%clk 0:02:18.5]}
15... Nd6 {[%clk 0:01:53.3]} 16. Nxd6 {[%clk 0:02:11.4]} 16... Qxd6 {[%clk
0:01:54.2]} 17. Bc3 {[%clk 0:02:06.2]} 17... e5 {[%clk 0:01:54.4]} 18. Nd2
{[%clk 0:01:54.2]} 18... f5 {[%clk 0:01:43.1]} 19. Nb3 {[%clk 0:01:20.4]} 19...
Bd7 {[%clk 0:01:25.6]} 20. Qb5 {[%clk 0:01:17]} 20... Nd4 {[%clk 0:00:40.2]} 21.
Qxc5 {[%clk 0:01:16.8]} 21... Ne2+ {[%clk 0:00:40.3]} 22. Kh2 {[%clk 0:01:16.3]}
22... Qxc5 {[%clk 0:00:09.9]} 23. Nxc5 {[%clk 0:01:16.4]} 23... Bc6 {[%clk
0:00:10.3]} 24. Ne6 {[%clk 0:00:57.9]} 24... Rf7 {[%clk 0:00:08.2]} 25. Nxg7
{[%clk 0:00:57.7]} 25... Nxc3 {[%clk 0:00:07.7]} 26. bxc3 {[%clk 0:00:55.7]}
26... Bxg2 {[%clk 0:00:04.9]} 27. Kxg2 {[%clk 0:00:55.6]} 27... Kxg7 {[%clk
0:00:05.8]} 28. Rb5 {[%clk 0:00:49]} 28... Rc7 {[%clk 0:00:06.3]} 29. Rd1 {[%clk
0:00:39.9]} 29... e4 {[%clk 0:00:03.3]} 30. Rd6 {[%clk 0:00:33.5]} 30... Ra6
{[%clk 0:00:02.9]} 31. Rxb7 {[%clk 0:00:31.2]} 1-0

[Event "Early-Titled-Tuesday-Blitz-February-20-2024"]
[Site "Chess.com"]
[Date "2024.02.20"]
[Round "10"]
[White "Oleksandr_Bortnyk"]
[Black "AnishOnYoutube"]
[Result "0-1"]
[WhiteElo "3071"]
[BlackElo "3049"]
[TimeControl "180+1"]
[EndTime "9:57:46 PST"]
[Termination "AnishOnYoutube won by resignation"]

1. e4 {[%clk 0:03:00.9]} 1... c5 {[%clk 0:02:57.5]} 2. c3 {[%clk 0:02:59.7]}
2... Nf6 {[%clk 0:02:48.8]} 3. e5 {[%clk 0:02:58.7]} 3... Nd5 {[%clk 0:02:49.5]}
4. d4 {[%clk 0:02:59.6]} 4... cxd4 {[%clk 0:02:49.2]} 5. Nf3 {[%clk 0:03:00.2]}
5... e6 {[%clk 0:02:49.6]} 6. cxd4 {[%clk 0:02:59.6]} 6... d6 {[%clk 0:02:48.2]}
7. Bc4 {[%clk 0:02:56.6]} 7... dxe5 {[%clk 0:02:48.6]} 8. dxe5 {[%clk
0:02:53.6]} 8... Bb4+ {[%clk 0:02:49.2]} 9. Bd2 {[%clk 0:02:38.3]} 9... O-O
{[%clk 0:02:41.8]} 10. O-O {[%clk 0:02:33.1]} 10... Bxd2 {[%clk 0:02:40.5]} 11.
Nbxd2 {[%clk 0:02:30.4]} 11... Nf4 {[%clk 0:02:37.7]} 12. Ne4 {[%clk 0:02:16.4]}
12... Qxd1 {[%clk 0:02:29.9]} 13. Rfxd1 {[%clk 0:02:14.2]} 13... Bd7 {[%clk
0:02:29.6]} 14. Rd4 {[%clk 0:01:14.6]} 14... Bc6 {[%clk 0:02:17.1]} 15. Rad1
{[%clk 0:01:11.2]} 15... a5 {[%clk 0:01:38.7]} 16. h4 {[%clk 0:00:35]} 16... h6
{[%clk 0:01:12]} 17. Nf6+ {[%clk 0:00:23.5]} 17... gxf6 {[%clk 0:01:11.2]} 18.
Rxf4 {[%clk 0:00:24.4]} 18... f5 {[%clk 0:01:04.1]} 19. Nd4 {[%clk 0:00:18.4]}
19... Rd8 {[%clk 0:01:03.8]} 20. Be2 {[%clk 0:00:13.6]} 20... Rd5 {[%clk
0:00:53.1]} 21. g4 {[%clk 0:00:08.9]} 21... fxg4 {[%clk 0:00:47.7]} 22. Rxg4+
{[%clk 0:00:09.4]} 22... Kf8 {[%clk 0:00:46.6]} 23. f4 {[%clk 0:00:07.6]} 23...
Nd7 {[%clk 0:00:46.3]} 24. Bf3 {[%clk 0:00:06.9]} 24... Rxd4 {[%clk 0:00:45.5]}
25. Rxd4 {[%clk 0:00:05]} 25... Bxf3 {[%clk 0:00:46.2]} 26. Rg3 {[%clk 0:00:05]}
26... Bd5 {[%clk 0:00:46.6]} 27. b3 {[%clk 0:00:03.7]} 27... Rc8 {[%clk
0:00:46.8]} 28. Kf2 {[%clk 0:00:03.3]} 28... Rc2+ {[%clk 0:00:46.6]} 29. Ke3
{[%clk 0:00:03.3]} 29... Rxa2 {[%clk 0:00:47.2]} 30. Rd1 {[%clk 0:00:03.8]}
30... Rb2 {[%clk 0:00:46.3]} 31. Kd4 {[%clk 0:00:04.4]} 31... a4 {[%clk
0:00:42.8]} 32. Rdg1 {[%clk 0:00:04.3]} 32... Rxb3 {[%clk 0:00:37.5]} 33. Rg8+
{[%clk 0:00:05.2]} 33... Ke7 {[%clk 0:00:37.7]} 34. Ra8 {[%clk 0:00:04.8]} 34...
Rb4+ {[%clk 0:00:37.7]} 35. Kc3 {[%clk 0:00:04.3]} 35... Rxf4 {[%clk 0:00:36.8]}
36. Rgg8 {[%clk 0:00:05.2]} 36... Nxe5 {[%clk 0:00:36.6]} 0-1